bitfinex/quotes_SOLUSD_20241205
["timestamp","ask_amount","ask_price","bid_price","bid_amount"]
[1733400784824,3.4279,244.29,244.23,7.72415823]
[1733400785025,3.4279,244.29,244.25,7.72415823]
[1733400785729,3.4279,244.29,244.16,0.61400552]
[1733400785918,3.4279,244.29,244.25,7.72415823]
[1733400786122,3.4279,244.29,244.27,7.72415823]
[1733400787237,3.4279,244.29,244.21,0.61394721]
[1733400787441,3.4279,244.29,244.25,7.72415823]
[1733400788223,3.4279,244.29,244.21,0.61394721]
[1733400788415,3.4279,244.29,244.14,0.614102]
[1733400788416,11.15205823,244.29,244.14,0.614102]
[1733400788633,11.15205823,244.29,244.2,7.72415823]
[1733400789243,3.4279,244.29,244.21,0.61412809]
[1733400789741,3.4279,244.29,244.24,7.72415823]
[1733400790234,3.4279,244.29,244.25,0.61403573]
[1733400790431,3.4279,244.29,244.26,7.72415823]
[1733400790813,3.4279,244.29,244.25,0.61403573]
[1733400791440,0.4775171,244.3,244.25,0.61403573]
[1733400792022,0.4775171,244.3,244.26,8.33812245]
[1733400792229,0.4775171,244.3,244.26,7.72415823]
[1733400792436,0.4775171,244.3,244.22,0.61395182]
[1733400792645,0.4775171,244.3,244.25,7.72415823]
[1733400793045,0.4775171,244.3,244.23,7.72415823]
[1733400793249,7.72415823,244.27,244.17,0.61406641]
[1733400793427,0.4775171,244.3,244.21,7.72415823]
[1733400793750,8.20167533,244.3,244.21,7.72415823]
[1733400794241,12.06850994,244.27,244.14,0.6141438]
[1733400794419,12.06850994,244.27,244.18,12.06850994]
[1733400794627,12.06850994,244.29,244.2,12.06850994]
[1733400795745,12.06850994,244.29,244.21,0.61410986]
[1733400796045,0.4775171,244.3,244.22,12.06850994]
[1733400796348,0.4775171,244.3,244.24,12.06850994]
[1733400796549,12.06850994,244.29,244.23,0.61401513]
[1733400796736,12.06850994,244.27,244.15,0.61413348]
[1733400797048,12.06850994,244.29,244.2,12.06850994]
[1733400797218,12.06850994,244.29,244.21,0.61406773]
[1733400798128,0.4775171,244.3,244.22,12.06850994]
[1733400798329,0.4775171,244.3,244.23,0.61399774]
[1733400798649,12.06850994,244.29,244.2,12.06850994]
[1733400798851,12.06850994,244.29,244.21,0.61409963]
[1733400799542,12.06850994,244.29,244.2,12.06850994]
[1733400799753,12.06850994,244.27,244.18,12.06850994]
[1733400800119,12.06850994,244.25,244.18,12.06850994]
[1733400800439,23.776884,244.18,244.07,0.61425777]
[1733400800748,12.06850994,244.12,244.05,12.06850994]
[1733400801135,12.06850994,244.14,244.05,12.06850994]
[1733400801334,0.12549,244.15,244.05,12.06850994]
[1733400801536,6.0812,244.1,244.01,12.06850994]
[1733400801732,6.0812,244.1,243.9,1.38180397]
[1733400801733,12.06850994,244.05,243.93,0.61463399]
[1733400801932,12.06850994,244.01,243.93,12.06850994]
[1733400802140,12.06850994,243.99,243.91,12.06850994]
[1733400802345,12.06850994,243.97,243.89,12.06850994]
[1733400802743,12.06850994,243.95,243.87,12.06850994]
[1733400803451,6.4629,243.96,243.91,12.06850994]
[1733400803951,6.4629,243.96,243.88,12.06850994]
[1733400804257,12.06850994,243.95,243.85,0.61489302]
[1733400804430,12.06850994,243.95,243.87,12.06850994]
[1733400804626,6.4629,243.96,243.9,12.06850994]
[1733400804951,18.53140994,243.96,243.88,12.06850994]
[1733400805334,18.53140994,243.96,243.82,0.61497845]
[1733400805556,18.53140994,243.96,243.87,12.06850994]
[1733400807953,12.06850994,243.92,243.83,12.06850994]
[1733400808136,12.06850994,243.92,243.85,12.06850994]
[1733400809242,12.06850994,243.92,243.83,12.06850994]
[1733400810951,12.06850994,243.92,243.83,12.6835968]
[1733400811259,12.06850994,243.88,243.81,3.24]
[1733400812148,12.06850994,243.9,243.81,15.30850994]
[1733400812755,12.06850994,243.89,243.81,15.30850994]
[1733400812946,12.06850994,243.91,243.83,12.06850994]
[1733400813858,6.4629,243.96,243.87,12.06850994]
[1733400814358,12.06850994,243.95,243.87,12.06850994]
[1733400814935,6.4629,243.96,243.87,12.06850994]
[1733400815132,3.4512,243.98,243.91,12.06850994]
[1733400815344,3.0729,244.07,243.97,12.06850994]
[1733400815345,3.6054,244.05,243.97,12.06850994]
[1733400815556,3.6054,244.05,244.0,12.06850994]
[1733400815852,3.6054,244.05,243.92,0.61478702]
[1733400815853,3.6054,244.05,243.98,12.06850994]
[1733400816058,15.67390994,244.05,243.96,12.06850994]
[1733400816775,0.25098,244.04,243.96,12.06850994]
[1733400817159,24.027864,244.04,243.96,12.06850994]
[1733400817468,15.67390994,244.05,243.96,12.06850994]
[1733400818053,12.06850994,244.12,244.03,12.06850994]
[1733400818755,12.06850994,244.08,243.99,12.06850994]
[1733400819882,12.06850994,244.06,243.97,12.06850994]
[1733400820568,12.06850994,244.04,243.95,12.06850994]
[1733400821161,12.06850994,244.04,243.97,12.06850994]
[1733400821974,12.06850994,244.0,243.91,12.06850994]
[1733400823654,3.4809,244.02,243.92,0.61484626]
[1733400823859,3.4809,244.02,243.94,12.06850994]
[1733400825265,15.54940994,244.02,243.94,12.06850994]
[1733400825976,3.4809,244.02,243.96,12.06850994]
[1733400826551,3.4809,244.02,243.94,12.06850994]
[1733400827579,15.54940994,244.02,243.94,12.06850994]
[1733400828080,12.06850994,244.0,243.92,12.06850994]
[1733400828379,15.54940994,244.02,243.94,12.06850994]
[1733400829456,0.12549,244.01,243.94,12.06850994]
[1733400829674,12.06850994,244.0,243.92,12.06850994]
[1733400829863,12.06850994,243.98,243.9,12.06850994]
[1733400830163,0.12549,243.97,243.9,12.06850994]
[1733400830476,12.06850994,243.98,243.9,12.06850994]
[1733400831184,12.06850994,244.01,243.93,12.06850994]
[1733400832664,3.4809,244.02,243.97,12.06850994]
[1733400832866,3.4809,244.02,243.99,12.06850994]
[1733400833052,3.6439,244.08,244.01,12.06850994]
[1733400833866,3.6439,244.08,244.03,12.06850994]
[1733400834178,3.6439,244.08,244.05,12.06850994]
[1733400834385,12.06850994,244.13,244.05,12.06850994]
[1733400835568,12.06850994,244.11,244.01,20.0]
[1733400835771,12.06850994,244.09,244.0,12.06850994]
[1733400836284,12.06850994,244.07,243.98,12.06850994]
[1733400836487,12.06850994,244.07,244.0,12.06850994]
[1733400837285,27.100064,244.13,243.9,0.61462859]
[1733400837286,3.7029,244.2,244.01,0.61464177]
[1733400837488,12.06850994,244.15,244.06,12.06850994]
[1733400837865,0.12549,244.14,244.06,12.06850994]
[1733400838887,12.06850994,244.13,244.06,12.06850994]
[1733400839065,12.06850994,244.13,243.99,0.61453165]
[1733400839275,12.06850994,244.13,244.04,12.06850994]
[1733400840880,0.25098,244.18,243.96,32.06850994]
[1733400840881,12.06850994,244.09,243.98,0.61453948]
[1733400841187,3.4512,244.08,244.0,12.06850994]
[1733400841557,0.12549,244.06,243.98,12.06850994]
[1733400841969,12.06850994,244.01,243.9,0.61474953]
[1733400842193,12.06850994,244.05,243.96,12.06850994]
[1733400844191,0.12549,244.02,243.94,12.06850994]
[1733400844363,12.06850994,244.01,243.94,12.06850994]
[1733400845270,23.776884,244.04,243.86,0.61484166]
[1733400845271,12.06850994,243.97,243.86,0.61484166]
[1733400845492,3.6151,243.95,243.88,12.06850994]
[1733400846664,0.25098,243.92,243.85,12.06850994]
[1733400846865,12.06850994,243.89,243.81,12.06850994]
[1733400847380,0.12549,243.82,243.68,0.61515918]
[1733400847579,12.06850994,243.81,243.73,12.06850994]
[1733400848299,12.06850994,243.77,243.7,12.06850994]
[1733400848891,6.3315,243.82,243.72,12.06850994]
[1733400849065,6.3315,243.82,243.76,12.06850994]
[1733400849270,6.3315,243.82,243.78,12.06850994]
[1733400850479,3.531,243.84,243.8,12.06850994]
[1733400850693,3.531,243.84,243.73,20.61527581]
[1733400850994,3.531,243.84,243.81,12.06850994]
[1733400851770,3.415,243.9,243.83,12.06850994]
[1733400851968,3.415,243.9,243.87,12.06850994]
[1733400852188,12.06850994,243.89,243.81,12.06850994]
[1733400852393,0.12549,243.86,243.77,12.06850994]
[1733400852879,12.06850994,243.85,243.77,12.06850994]
[1733400853080,12.06850994,243.85,243.74,20.0]
[1733400853276,12.06850994,243.83,243.74,12.06850994]
[1733400853867,12.06850994,243.81,243.74,12.06850994]
[1733400854081,12.06850994,243.81,243.72,12.06850994]
[1733400854296,0.12549,243.8,243.72,12.06850994]
[1733400854479,6.38698,243.8,243.72,12.06850994]
[1733400854878,6.38698,243.8,243.68,0.61540297]
[1733400854879,3.5393,243.78,243.74,12.06850994]
[1733400855196,3.5393,243.84,243.76,12.06850994]
[1733400855395,3.5393,243.84,243.83,12.06850994]
[1733400856602,3.5393,243.84,243.81,12.06850994]
[1733400856807,3.5074,243.92,243.83,12.06850994]
[1733400857008,1.42798609,244.03,243.94,26.0831]
[1733400857304,1.42798609,244.03,244.02,12.06850994]
[1733400857683,12.06850994,244.09,244.01,12.06850994]
[1733400858994,0.12549,244.08,244.01,12.06850994]
[1733400859194,12.06850994,244.09,244.01,12.06850994]
[1733400859705,0.12549,244.06,243.99,12.06850994]
[1733400860094,19.59284752,244.06,243.97,19.34186752]
[1733400860300,3.4297,244.05,243.96,19.34186752]
[1733400860990,3.4297,244.05,243.99,19.34186752]
[1733400861709,3.4297,244.05,243.97,19.34186752]
[1733400861912,3.4914,244.2,244.04,19.34186752]
[1733400862102,3.4914,244.2,243.98,0.61476466]
[1733400862103,3.4914,244.2,244.07,19.34186752]
[1733400862285,19.34186752,244.18,244.09,19.34186752]
[1733400862487,3.4914,244.2,244.15,19.34186752]
[1733400862913,0.25098,244.19,244.11,19.34186752]
[1733400863210,22.83326752,244.2,244.11,19.34186752]
[1733400863780,19.34186752,244.16,244.07,19.34186752]
[1733400864214,0.12549,244.15,244.07,19.34186752]
[1733400865712,19.34186752,244.16,244.07,19.34186752]
[1733400865909,0.12549,244.14,244.07,19.34186752]
[1733400866082,19.46735752,244.19,244.09,19.34186752]
[1733400866281,19.34186752,244.17,244.09,19.34186752]
[1733400866488,23.902374,244.16,244.09,19.34186752]
[1733400866687,23.902374,244.16,244.07,19.34186752]
[1733400867587,0.12549,244.06,243.98,19.34186752]
[1733400867782,0.12549,244.05,243.96,19.34186752]
[1733400867989,0.12549,244.04,243.96,19.34186752]
[1733400868187,19.34186752,244.06,243.98,19.34186752]
[1733400868414,3.4233,244.07,244.0,19.34186752]
[1733400868706,0.12549,244.06,244.0,19.34186752]
[1733400869109,19.46735752,244.06,243.98,19.34186752]
[1733400870611,0.12549,244.06,244.0,19.34186752]
[1733400871615,19.46735752,244.06,243.98,19.34186752]
[1733400872115,0.12549,244.06,243.98,19.34186752]
[1733400872317,3.4233,244.07,244.04,19.34186752]
[1733400872511,3.4233,244.07,244.06,19.34186752]
[1733400872708,3.4233,244.07,243.99,20.61472396]
[1733400872909,3.4233,244.07,244.06,19.34186752]
[1733400875521,3.4233,244.07,244.0,19.34186752]
[1733400875707,3.4233,244.07,244.02,19.34186752]
[1733400876318,6.0846,244.13,244.06,19.34186752]
[1733400876498,6.0846,244.13,244.08,19.34186752]
[1733400877507,6.0846,244.13,244.06,19.34186752]
[1733400880300,3.5071,244.14,244.12,19.34186752]
[1733400881105,3.5071,244.14,244.1,19.34186752]
[1733400882024,3.5071,244.14,244.06,19.34186752]
[1733400882324,19.34186752,244.13,244.04,19.34186752]
[1733400882625,3.5071,244.14,244.06,19.34186752]
[1733400883711,19.34186752,244.11,244.04,19.34186752]
[1733400883908,0.12549,244.1,244.02,19.34186752]
[1733400884109,0.12549,244.07,243.98,19.34186752]
[1733400884322,19.34186752,244.08,243.96,19.34186752]
[1733400884323,19.34186752,244.04,243.96,19.34186752]
[1733400886225,19.34186752,244.07,244.0,19.34186752]
[1733400886428,6.0827,244.09,244.02,19.34186752]
[1733400888526,6.0827,244.09,244.0,19.34186752]
[1733400888527,19.34186752,244.07,244.0,19.34186752]
[1733400889501,6.0827,244.09,244.02,19.34186752]
[1733400890031,6.0827,244.09,244.0,19.34186752]
[1733400891018,19.34186752,244.08,244.0,19.34186752]
[1733400891216,22.84896752,244.14,244.06,19.34186752]
[1733400891421,3.5071,244.14,244.06,19.34186752]
[1733400891627,3.5071,244.14,244.01,0.61469126]
[1733400891628,3.5071,244.14,244.08,19.34186752]
[1733400891815,3.5071,244.14,244.1,19.34186752]
[1733400892015,3.5071,244.14,244.01,0.61469126]
[1733400892016,3.5071,244.14,244.12,19.34186752]
[1733400892330,9.7663,244.21,244.12,19.34186752]
[1733400892531,9.7663,244.21,244.14,19.34186752]
[1733400893733,19.34186752,244.2,244.1,19.34186752]
[1733400894429,19.34186752,244.2,244.12,19.34186752]
[1733400897438,19.34186752,244.14,244.07,19.34186752]
[1733400898140,19.34186752,244.16,244.07,19.34186752]
[1733400899915,19.34186752,244.14,244.07,19.34186752]
[1733400900115,19.34186752,244.14,244.05,19.34186752]
[1733400900315,19.34186752,244.14,244.07,19.34186752]
[1733400900722,19.34186752,244.16,244.07,19.34186752]
[1733400902047,19.34186752,244.16,244.09,19.34186752]
[1733400902515,19.34186752,244.18,244.11,19.34186752]
[1733400902847,19.34186752,244.18,244.09,19.34186752]
[1733400903330,19.34186752,244.16,244.09,19.34186752]
[1733400903840,23.902374,244.17,244.09,19.34186752]
[1733400904135,19.34186752,244.18,244.11,19.34186752]
[1733400904539,19.34186752,244.2,244.11,19.34186752]
[1733400904730,19.34186752,244.2,244.13,19.34186752]
[1733400905726,9.7663,244.21,244.15,19.34186752]
[1733400906324,3.4956,244.21,244.2,19.34186752]
[1733400906528,3.5698,244.28,244.2,19.34186752]
[1733400906721,3.5698,244.28,244.23,19.34186752]
[1733400907041,3.5698,244.28,244.21,19.34186752]
[1733400907226,19.34186752,244.24,244.17,19.34186752]
[1733400907648,3.5698,244.28,244.1,10.2417]
[1733400907649,3.5698,244.28,244.21,19.34186752]
[1733400908145,3.5698,244.28,244.19,19.34186752]
[1733400908146,19.34186752,244.27,244.19,19.34186752]
[1733400908939,3.5698,244.28,244.19,19.34186752]
[1733400909151,22.91166752,244.28,244.19,19.34186752]
[1733400909329,22.91166752,244.28,244.21,19.34186752]
[1733400909527,23.902374,244.27,244.19,19.34186752]
[1733400909839,19.34186752,244.26,244.19,19.34186752]
[1733400910345,23.902374,244.27,244.19,19.34186752]
[1733400910544,22.91166752,244.28,244.21,19.34186752]
[1733400911243,3.5698,244.28,244.23,19.34186752]
[1733400912747,3.5698,244.28,244.25,19.34186752]
[1733400913736,0.12549,244.31,244.25,19.34186752]
[1733400914237,0.12549,244.32,244.25,19.34186752]
[1733400914431,19.34186752,244.33,244.25,19.34186752]
[1733400914648,19.34186752,244.35,244.27,19.34186752]
[1733400915653,0.12549,244.34,244.27,19.34186752]
[1733400916032,12.06038201,244.35,244.27,12.06038201]
[1733400916233,0.12549,244.34,244.27,12.06038201]
[1733400917854,0.12549,244.34,244.29,12.06038201]
[1733400918361,3.6618,244.35,244.29,12.06038201]
[1733400919532,12.06038201,244.38,244.31,12.06038201]
[1733400922030,15.69948201,244.45,244.37,12.06038201]
[1733400922325,15.69948201,244.45,244.38,12.06038201]
[1733400922641,3.6391,244.45,244.41,12.06038201]
[1733400922833,3.6391,244.45,244.42,12.06038201]
[1733400923655,3.6391,244.45,244.43,12.06038201]
[1733400924060,4.81833559,244.49,244.44,12.06038201]
[1733400924258,10.0,244.5,244.44,12.06038201]
[1733400924556,10.0,244.5,244.45,12.06038201]
[1733400925430,10.0,244.5,244.47,12.06038201]
[1733400925756,10.0,244.5,244.46,12.06038201]
[1733400926255,10.0,244.5,244.48,12.06038201]
[1733400926439,10.0,244.5,244.49,12.06038201]
[1733400928461,10.0,244.5,244.42,20.0]
[1733400928628,10.0,244.5,244.44,12.06038201]
[1733400929059,10.0,244.5,244.46,12.06038201]
[1733400929949,10.0,244.5,244.48,12.06038201]
[1733400930259,10.0,244.5,244.46,12.06038201]
[1733400930860,10.0,244.5,244.48,12.06038201]
[1733400931445,10.0,244.5,244.46,12.06038201]
[1733400931647,10.0,244.5,244.44,12.06038201]
[1733400932043,10.0,244.5,244.48,12.06038201]
[1733400932266,10.0,244.5,244.49,12.06038201]
[1733400932439,10.0,244.5,244.38,10.2299]
[1733400932753,10.0,244.5,244.49,12.06038201]
[1733400934751,10.0,244.5,244.46,12.06038201]
[1733400935271,10.0,244.5,244.48,12.06038201]
[1733400935765,10.0,244.5,244.47,12.06038201]
[1733400936143,10.0,244.5,244.47,11.31378201]
[1733400936950,10.0,244.5,244.46,12.06038201]
[1733400937146,10.0,244.5,244.41,0.61346356]
[1733400937346,10.0,244.5,244.46,12.06038201]
[1733400938056,10.0,244.5,244.47,12.06038201]
[1733400938267,10.0,244.5,244.46,12.06038201]
[1733400938973,12.06038201,244.48,244.33,0.6135256]
[1733400939173,12.06038201,244.45,244.37,12.06038201]
[1733400940170,23.776884,244.49,244.27,4.89299026]
[1733400940171,12.06038201,244.4,244.27,4.89299026]
[1733400940362,0.12549,244.37,244.3,12.06038201]
[1733400940665,12.06038201,244.38,244.3,12.06038201]
[1733400941250,15.59538201,244.44,244.36,12.06038201]
[1733400941449,15.59538201,244.44,244.4,12.06038201]
[1733400941450,3.535,244.44,244.4,12.06038201]
[1733400941667,12.06038201,244.49,244.4,12.06038201]
[1733400942854,12.06038201,244.46,244.38,12.06038201]
[1733400943057,22.06038201,244.5,244.42,12.06038201]
[1733400943464,10.0,244.5,244.44,12.06038201]
[1733400944055,10.0,244.5,244.49,12.06038201]
[1733400944447,10.0,244.5,244.47,12.06038201]
[1733400950365,11.46005211,244.57,244.47,12.06038201]
[1733400951755,0.12549,244.54,244.47,12.06038201]
[1733400951973,12.06038201,244.53,244.45,12.06038201]
[1733400952477,23.902374,244.52,244.43,12.06038201]
[1733400953563,23.902374,244.52,244.45,12.06038201]
[1733400953954,12.06038201,244.53,244.38,7.09775767]
[1733400954154,12.06038201,244.55,244.48,12.06038201]
[1733400956372,12.06038201,244.55,244.46,12.06038201]
[1733400956565,0.12549,244.54,244.46,12.06038201]
[1733400956766,12.06038201,244.55,244.46,12.06038201]
[1733400957180,12.06038201,244.57,244.5,12.06038201]
[1733400957964,12.06038201,244.59,244.52,12.06038201]
[1733400959383,0.12549,244.61,244.52,12.06038201]
[1733400959563,12.06038201,244.59,244.52,12.06038201]
[1733400960078,12.06038201,244.57,244.5,12.06038201]
[1733400960288,12.06038201,244.53,244.41,20.0]
[1733400960462,12.06038201,244.55,244.47,12.06038201]
[1733400960782,12.06038201,244.57,244.49,12.06038201]
[1733400961579,12.06038201,244.59,244.51,12.06038201]
[1733400962459,12.06038201,244.59,244.49,12.06038201]
[1733400962661,0.12549,244.58,244.49,12.06038201]
[1733400962972,12.06038201,244.57,244.5,12.06038201]
[1733400964663,12.06038201,244.59,244.52,12.06038201]
[1733400966886,12.06038201,244.59,244.5,12.06038201]
[1733400967197,12.06038201,244.57,244.5,12.06038201]
[1733400969304,12.06038201,244.57,244.45,20.0]
[1733400969496,12.06038201,244.57,244.48,12.06038201]
[1733400969697,24.027864,244.56,244.43,0.61343921]
[1733400969881,12.06038201,244.52,244.44,12.06038201]
[1733400970289,23.776884,244.53,244.46,12.06038201]
[1733400970690,0.12549,244.52,244.46,12.06038201]
[1733400971010,12.31136201,244.52,244.44,12.06038201]
[1733400971193,0.12549,244.5,244.44,12.06038201]
[1733400971710,3.0671,244.53,244.46,12.06038201]
[1733400972205,0.12549,244.51,244.46,12.06038201]
[1733400973817,9.1559955,244.87,244.46,12.06038201]
[1733400974105,12.06038201,244.59,244.51,12.06038201]
[1733400974689,12.06038201,244.57,244.49,12.06038201]
[1733400975303,0.12549,244.55,244.49,12.06038201]
[1733400975991,12.06038201,244.58,244.51,12.06038201]
[1733400976192,12.06038201,244.56,244.47,12.06038201]
[1733400976499,24.027864,244.47,244.32,6.94739568]
[1733400976808,0.12549,244.43,244.37,12.06038201]
[1733400977013,23.902374,244.44,244.37,12.06038201]
[1733400977307,23.902374,244.44,244.26,14.06801045]
[1733400977308,0.12549,244.42,244.35,12.06038201]
[1733400977615,3.75809,244.4,244.35,12.06038201]
[1733400977908,3.6326,244.4,244.37,12.06038201]
[1733400978096,3.5163,244.46,244.39,12.06038201]
[1733400978299,3.5163,244.46,244.42,12.06038201]
[1733400978495,3.5163,244.64,244.45,12.06038201]
[1733400978694,12.06038201,244.63,244.55,12.06038201]
[1733400979099,0.25098,244.62,244.46,6.94153871]
[1733400979288,12.06038201,244.63,244.46,6.94153871]
[1733400979491,12.06038201,244.63,244.54,12.06038201]
[1733400981099,23.902374,244.62,244.54,12.06038201]
[1733400981596,0.12549,244.59,244.52,12.06038201]
[1733400981812,0.12549,244.59,244.54,12.06038201]
[1733400982918,0.12549,244.59,244.46,6.94153871]
[1733400983421,0.12549,244.59,244.53,12.06038201]
[1733400985712,12.06038201,244.61,244.53,12.06038201]
[1733400986804,11.56038201,244.61,244.53,12.06038201]
[1733400992424,12.06038201,244.63,244.55,12.06038201]
[1733400993009,0.12549,244.62,244.55,12.06038201]
[1733400994023,12.06038201,244.63,244.55,12.06038201]
[1733400994799,3.5163,244.64,244.57,12.06038201]
[1733400995005,12.06038201,244.63,244.55,12.06038201]
[1733400995707,23.902374,244.62,244.55,12.06038201]
[1733400995911,0.12549,244.6,244.53,12.06038201]
[1733400996318,12.06038201,244.63,244.55,12.06038201]
[1733400997132,0.12549,244.62,244.55,12.06038201]
[1733400998519,3.5163,244.64,244.57,12.06038201]
[1733401000223,3.5163,244.64,244.59,12.06038201]
[1733401000414,0.12549,244.66,244.59,12.06038201]
[1733401000810,3.5206,244.77,244.61,12.06038201]
[1733401001124,12.06038201,244.73,244.65,12.06038201]
[1733401002227,12.06038201,244.71,244.61,20.0]
[1733401002426,12.06038201,244.71,244.64,12.06038201]
[1733401002723,0.12549,244.68,244.62,12.06038201]
[1733401003233,23.776884,244.7,244.62,12.06038201]
[1733401003435,12.06038201,244.71,244.64,12.06038201]
[1733401003819,23.902374,244.7,244.64,12.06038201]
[1733401006032,1.56163926,244.74,244.66,12.06038201]
[1733401006219,12.06038201,244.74,244.66,12.06038201]
[1733401006828,0.034295,244.75,244.65,20.0]
[1733401007040,12.09467701,244.75,244.66,12.06038201]
[1733401007213,0.12549,244.72,244.64,12.06038201]
[1733401007628,0.25098,244.72,244.64,12.06038201]
[1733401008316,23.902374,244.72,244.64,12.06038201]
[1733401008715,0.12549,244.72,244.64,12.06038201]
[1733401008915,23.902374,244.72,244.65,12.06038201]
[1733401009728,23.776884,244.72,244.65,12.06038201]
[1733401010032,14.09877556,244.73,244.67,12.06038201]
[1733401010033,3.4504,244.73,244.67,12.06038201]
[1733401010341,0.12549,244.7,244.62,12.06038201]
[1733401011120,24.027864,244.7,244.64,12.06038201]
[1733401011631,0.12549,244.71,244.66,12.06038201]
[1733401012025,0.12549,244.71,244.65,7.69583951]
[1733401013333,3.4504,244.73,244.67,7.69583951]
[1733401013535,3.4504,244.73,244.59,0.613182]
[1733401013714,24.027864,244.72,244.59,0.613182]
[1733401013915,3.4504,244.73,244.66,7.69583951]
[1733401014110,23.776884,244.72,244.59,0.613182]
[1733401014342,23.776884,244.72,244.67,7.69583951]
[1733401015041,3.4504,244.73,244.67,7.69583951]
[1733401015232,3.4504,244.73,244.69,7.69583951]
[1733401015819,0.034295,244.75,244.69,7.69583951]
[1733401017038,0.25098,244.74,244.68,7.69583951]
[1733401017248,24.027864,244.74,244.68,7.69583951]
[1733401018034,24.027864,244.74,244.61,20.0]
[1733401018219,24.027864,244.74,244.67,7.69583951]
[1733401018426,0.034295,244.75,244.67,7.69583951]
[1733401018839,0.034295,244.75,244.69,7.69583951]
[1733401020345,0.034295,244.75,244.71,7.69583951]
[1733401021345,0.034295,244.75,244.61,10.2201]
[1733401021346,0.159785,244.75,244.61,20.0]
[1733401021538,0.12549,244.74,244.67,7.69583951]
[1733401021738,0.12549,244.74,244.59,0.61296524]
[1733401021739,0.12549,244.73,244.61,20.0]
[1733401021941,0.12549,244.72,244.61,20.0]
[1733401022128,0.12549,244.72,244.66,7.69583951]
[1733401022332,0.12549,244.72,244.68,7.69583951]
[1733401022639,0.12549,244.72,244.58,6.6443]
[1733401022879,0.12549,244.72,244.66,7.69583951]
[1733401023841,0.12549,244.72,244.59,0.61312965]
[1733401024047,0.12549,244.72,244.66,7.69583951]
[1733401024752,24.027864,244.74,244.66,7.69583951]
[1733401024931,31.72370351,244.74,244.66,7.69583951]
[1733401025136,24.027864,244.74,244.66,7.69583951]
[1733401025328,31.72370351,244.74,244.66,7.69583951]
[1733401025633,24.027864,244.69,244.56,30.78335804]
[1733401025834,24.027864,244.69,244.52,10.83694266]
[1733401025835,24.027864,244.65,244.52,6.4001]
[1733401026046,24.027864,244.65,244.58,7.69583951]
[1733401026251,24.027864,244.65,244.6,7.69583951]
[1733401026444,23.776884,244.67,244.62,7.69583951]
[1733401026630,0.12549,244.66,244.62,7.69583951]
[1733401027150,3.552,244.68,244.64,7.69583951]
[1733401027352,3.552,244.68,244.66,7.69583951]
[1733401027651,3.4776,244.74,244.66,7.69583951]
[1733401027853,3.4776,244.74,244.68,7.69583951]
[1733401028439,3.4776,244.74,244.61,20.0]
[1733401028635,3.4776,244.74,244.67,7.69583951]
[1733401028839,7.94681951,244.73,244.65,7.69583951]
[1733401029549,24.027864,244.73,244.65,7.69583951]
[1733401030370,24.027864,244.73,244.67,7.69583951]
[1733401031143,24.027864,244.73,244.58,0.61312902]
[1733401031461,24.027864,244.73,244.67,7.69583951]
[1733401032236,3.4776,244.74,244.67,7.69583951]
[1733401032637,0.034295,244.75,244.71,7.69583951]
[1733401033355,0.034295,244.75,244.7,7.69583951]
[1733401035135,7.69583951,244.73,244.61,20.0]
[1733401035447,7.69583951,244.73,244.65,7.69583951]
[1733401036152,0.25098,244.73,244.65,7.69583951]
[1733401036356,7.69583951,244.72,244.65,7.69583951]
[1733401036934,7.69583951,244.74,244.65,7.69583951]
[1733401037141,0.034295,244.75,244.67,7.69583951]
[1733401037353,0.25098,244.74,244.67,7.69583951]
[1733401037904,0.25098,244.74,244.66,7.69583951]
[1733401038165,0.25098,244.72,244.66,7.69583951]
[1733401038538,0.25098,244.72,244.64,7.69583951]
[1733401038742,7.69583951,244.69,244.56,6.2249]
[1733401039040,0.25098,244.68,244.61,7.69583951]
[1733401039238,3.60788,244.68,244.55,0.61311337]
[1733401039439,3.60788,244.68,244.61,7.69583951]
[1733401039655,3.60788,244.68,244.52,5.42894445]
[1733401039656,0.25098,244.66,244.52,5.42894445]
[1733401039865,0.25098,244.64,244.57,7.69583951]
[1733401040447,0.25098,244.65,244.59,7.69583951]
[1733401040754,3.3569,244.68,244.61,7.69583951]
[1733401041338,0.25098,244.67,244.6,7.69583951]
[1733401041544,0.25098,244.67,244.55,5.42894445]
[1733401041753,7.69583951,244.66,244.58,7.69583951]
[1733401041971,0.25098,244.63,244.48,6.0422578]
[1733401042470,0.25098,244.63,244.56,7.69583951]
[1733401042976,3.0653,244.67,244.58,7.69583951]
[1733401042977,10.76113951,244.67,244.58,7.69583951]
[1733401043179,10.76113951,244.67,244.48,6.0422578]
[1733401043351,0.25098,244.66,244.51,20.0]